{"text_format":"1","workbook":"xlsx","n_sheets":13,"sheets":["Cover Sheet","Sheet6","Section 1","Section 2","Section 3","Section 4","Section 5","Section 6","Section 7","Summary","Data Validation","Logic","References"],"not_rendered":{"charts":0,"images":2,"macros":1,"external_links":0,"defined_names":7,"comments":0,"pivot_tables":0},"unopened":[],"bounds":{"document_bytes":16777216,"sheet_cells":100000,"rows_first":2000,"rows_last":500,"rows_between":2000,"halvings":0,"cell_chars":16384,"cell_head_chars":4096},"cells_cut":0,"cells_raw":0,"read":"whole","date_system":"1900"}

{"sheet":"Cover Sheet","index":0,"n_rows":27,"n_cols":9,"rows_kept":27,"cut":false,"hidden":false,"merged":[[26,0,27,7],[25,0,25,7],[13,0,13,4],[14,0,14,4],[13,5,13,7],[14,5,14,7],[17,1,17,6],[22,1,22,6],[24,1,24,6],[23,1,23,6],[18,1,18,6],[16,1,16,6],[19,1,19,6],[20,1,20,6],[21,1,21,6],[0,0,7,7],[8,0,11,7]]}
["SUPPLIER / SUB-CONTRACTOR NEW ACCOUNT FORM"]
[]
[]
[]
[]
[]
[]
[]
["Please only complete the Sections relevant to your Supply Chain Type and return along with any requested supplementary information / certificates, to the Dowds Group staff member who issued this form to you."]
[]
[]
[]
[]
["Which Category does your business fall in to?",null,null,null,null,"Please select:"]
["Using the guide below, please select your Supply Chain Type",null,null,null,null,"Please select:"]
[]
["SUPPLY CHAIN TYPE","DESCRIPTION",null,null,null,null,null,"COMPLETE SECTIONS"]
["Wholesaler","Supplier of 'off the shelf' items / products (eg cable and sockets, pipe and fittings)",null,null,null,null,null,"1, 3, 6, 7",{"$f":"IF(#REF!=\"\",\"\",A18)","v":{"$error":"#REF!"}}]
["Supplier","Supplier of items / products to a particular specification (eg. A generator, lighting, AHU, chillers)",null,null,null,null,null,"1, 3, 6, 7",{"$f":"IF(#REF!=\"\",\"\",A19)","v":{"$error":"#REF!"}}]
["Supplier 2","Building Supplier of mostly off the shelf items / products (including builders merchants) and can also include an element of design and / or manufacture (eg precast concrete lintels, cavity trays etc.,)",null,null,null,null,null,"1, 3, 6, 7"]
["Labour Only Sub Contractor","Labour and possibly supplying an element of day to day materials",null,null,null,null,null,"1, 2, 3, 7",{"$f":"IF(#REF!=\"\",\"\",A21)","v":{"$error":"#REF!"}}]
["Supply & Fix Subcontractor","Building Subcontractor who may include an element of design and/ or manufacture (eg. structural steel, windows, cladding)",null,null,null,null,null,"1, 2, 3, 4, 5, 6, 7",{"$f":"IF(#REF!=\"\",\"\",A22)","v":{"$error":"#REF!"}}]
["Specialist","Supplier of a system (eg Fire Alarm, BMS) which may include an element of design - can be supply and commission only",null,null,null,null,null,"1, 2, 3, 4, 5, 6, 7",{"$f":"IF(#REF!=\"\",\"\",A23)","v":{"$error":"#REF!"}}]
["Consultant / Designer","General and / or Specialist Designers",null,null,null,null,null,"1, 2, 3, 7",{"$f":"IF(#REF!=\"\",\"\",A24)","v":{"$error":"#REF!"}}]
["HIRE of Plant and Machinery","Specialist companies providing plant, machinery and equipment ",null,null,null,null,null,"1, 3, 6, 7"]
[]
["SECTIONS KEY:                                                                                                                                                                                                                       1-COMPANY DETAILS; 2-CATEGORIES/LOCATIONS COVERED; 3-INSURANCES; 4-HEALTH & SAFETY; 5-ENVIRONMENTAL;          6-QUALITY; 7-COMPLETION & DECLARATION"]

{"sheet":"Sheet6","index":1,"n_rows":0,"n_cols":0,"rows_kept":0,"cut":false,"hidden":true,"merged":[]}

{"sheet":"Section 1","index":2,"n_rows":38,"n_cols":14,"rows_kept":38,"cut":false,"hidden":false,"merged":[[39,0,40,6],[23,4,23,7],[25,1,25,3],[25,4,25,7],[22,0,25,0],[30,1,30,7],[31,1,31,7],[32,1,32,7],[29,1,29,7],[28,1,28,7],[37,0,38,6],[36,7,40,7],[33,0,34,7],[23,1,23,3],[27,0,27,7],[28,0,29,0],[10,1,10,7],[18,4,18,7],[22,4,22,7],[11,1,11,7],[13,1,13,7],[14,1,14,7],[16,0,16,3],[17,0,17,3],[22,1,22,3],[20,4,20,7],[20,1,20,3],[18,1,18,3],[16,4,17,7],[24,4,24,7],[24,1,24,3],[0,0,1,7],[19,1,19,3],[19,4,19,7],[21,1,21,3],[21,4,21,7],[20,0,21,0],[5,1,5,7],[6,1,6,7],[7,1,7,7],[8,1,8,7],[9,1,9,7],[2,1,2,7],[3,1,3,7],[4,1,4,7]]}
["SECTION 1 COMPANY DETAILS",null,null,null,null,null,null,null,null,null,null,"Comments"]
[null,null,null,null,null,null,null,null,null,"Requested by which Department?",null,null,"Account Name",{"$f":"B3","v":0}]
["COMPANY NAME",null,null,null,null,null,null,null,null,"Credit Score",null,null,"Contact Name",{"$f":"B6","v":0}]
["ADDRESS",null,null,null,null,null,null,null,null,"Credit Score Date",null,null,"Email",{"$f":"B8","v":0}]
["TELEPHONE",null,null,null,null,null,null,null,null,"APPROVED?",null,null,"Address",{"$f":"B4","v":0}]
["SALES CONTACT NAME",null,null,null,null,null,null,null,null,"If no - sent to who for review?",null,null,"Telephone",{"$f":"B7","v":0}]
["SALES TELEPHONE",null,null,null,null,null,null,null,null,"Approved on review?",null,null,"Account Number",{"$f":"B32","v":0}]
["SALES EMAIL",null,null,null,null,null,null,null,null,"CIS Scheme?",null,null,"Sort Code",{"$f":"B31","v":0}]
["ACCOUNTS CONTACT NAME",null,null,null,null,null,null,null,null,"CIS Type",null,null,"IBAN",{"$f":"B33","v":0}]
["ACCOUNTS TELEPHONE",null,null,null,null,null,null,null,null,"Business",null,null,"Sales Name",{"$f":"B6","v":0}]
["ACCOUNTS EMAIL",null,null,null,null,null,null,null,null,"Legal Name",null,null,"Telephone",0]
["REMITTANCE EMAIL ",null,null,null,null,null,null,null,null,"Verification Number",null,null,"Email",0]
[null,null,null,null,null,null,null,null,null,"Verification Date",null,null,"Accounts Name",0]
["VAT REGISTRATION NO:",null,null,null,null,null,null,null,null,"Bank Account Details Verified",null,null,"Telephone",0]
["COMPANY REGISTRATION NO:",null,null,null,null,null,null,null,null,"Payment Terms",null,null,"Email",0]
[null,null,null,null,null,null,null,null,null,"If Other - what terms are agreed",null,null,"Remittance Email",0]
["Do your works fall within the scope of the CIS Scheme?",null,null,null,null,null,null,null,null,"Account Approved",null,null,"VAT Number",{"$f":"B14","v":0}]
["If YES then please complete relevant section below:",null,null,null,null,null,null,null,null,"Account Reference",null,null,"NI Number",{"$f":"E20","v":0}]
["SOLE TRADER:","UTR Number",null,null,"National Insurance Number",null,null,null,null,"Town/City",null,null,"UTR Sole Trader",{"$f":"B20","v":0}]
[null,null,null,null,null,null,null,null,null,"Currency",null,null,"UTR Company",{"$f":"B22","v":0}]
["COMPANY:","UTR Number",null,null,null,null,null,null,null,"Default VAT Code",null,null,"UTR Partnership",{"$f":"B24","v":0}]
[null,null,null,null,null,null,null,null,null,"Nominal / CC / Dept",null,null,"Partners UTR",{"$f":"B26","v":0}]
["PARTNERSHIP","Partnership UTR",null,null,"Verifying Partners Name",null,null,null,null,"Payment Group",null,null,"Partners NI",{"$f":"E26","v":0}]
[null,null,null,null,null,null,null,null,null,null,null,null,"Partners Name",{"$f":"E24","v":0}]
[null,"Verifying Partners UTR",null,null,"Verifying Partners National Insurance Number",null,null,null,null,"Credit Score Criteria:",null,null,"Company Reg",{"$f":"B15","v":0}]
[null,null,null,null,null,null,null,null,null,"Refer to Niall Dowds if Credit Score is low:"]
[null,null,null,null,null,null,null,null,null,"A) Material Suppliers:"]
["BANK ACCOUNT DETAILS",null,null,null,null,null,null,null,null,"1. £5k or less - below 50"]
["Name of Bank & Address",null,null,null,null,null,null,null,null,"2. Above £5K - below 70"]
[null,null,null,null,null,null,null,null,null,"* Only a concern if materials being paid upfront - then discuss with CM"]
["Sort Code",null,null,null,null,null,null,null,null,"B) Specialist/Subcontract packages"]
["Account Number",null,null,null,null,null,null,null,null,"1. £5k or less - below 50"]
["IBAN",null,null,null,null,null,null,null,null,"2. Above £5K - below 70"]
["For verification, please attach a copy of your bank lodgement slip, or a screen shot of your bank statement showing account name, number and sort code",null,null,null,null,null,null,null,null,"* Only a concern if materials being paid upfront or te item is programme critical"]
[null,null,null,null,null,null,null,null,null,"** Raise concern with CM/Ops if required"]
[null,null,null,null,null,null,null,null,null,"C) Labour Only Subs"]
["Payment Terms:",null,null,null,null,null,null,"Please Select",null,"1. No major risk here"]
["Our standard Payment Terms are 60 Days EOM. Please confirm that you have agreed to these terms, or advise below alternative terms and who these have been agreed with."]

{"sheet":"Section 2","index":3,"n_rows":98,"n_cols":10,"rows_kept":98,"cut":false,"hidden":false,"merged":[[97,0,97,9],[0,0,1,9],[2,0,3,9],[12,1,12,8],[13,1,13,8],[14,1,14,8],[5,0,5,7],[9,0,9,9],[11,1,11,8],[15,1,15,8],[25,1,25,8],[26,1,26,8],[27,1,27,8],[16,1,16,8],[17,1,17,8],[18,1,18,8],[19,1,19,8],[20,1,20,8],[21,1,21,8],[22,1,22,8],[23,1,23,8],[24,1,24,8],[39,1,39,8],[28,1,28,8],[29,1,29,8],[30,1,30,8],[31,1,31,8],[34,1,34,8],[35,1,35,8],[36,1,36,8],[37,1,37,8],[38,1,38,8],[49,1,49,8],[50,1,50,8],[51,1,51,8],[40,1,40,8],[41,1,41,8],[42,1,42,8],[43,1,43,8],[44,1,44,8],[45,1,45,8],[70,1,70,8],[58,1,58,8],[33,0,33,8],[61,1,61,8],[62,1,62,8],[63,1,63,8],[64,1,64,8],[52,1,52,8],[53,1,53,8],[54,1,54,8],[55,1,55,8],[56,1,56,8],[57,1,57,8],[46,1,46,8],[47,1,47,8],[48,1,48,8],[65,1,65,8],[66,1,66,8],[67,1,67,8],[68,1,68,8],[69,1,69,8],[81,1,81,8],[71,1,71,8],[72,1,72,8],[74,1,74,8],[73,1,73,8],[75,1,75,8],[76,1,76,8],[77,1,77,8],[78,1,78,8],[79,1,79,8],[80,1,80,8],[98,0,107,9],[94,1,94,8],[95,1,95,8],[60,0,60,8],[88,1,88,8],[89,1,89,8],[90,1,90,8],[91,1,91,8],[92,1,92,8],[93,1,93,8],[82,1,82,8],[83,1,83,8],[84,1,84,8],[85,1,85,8],[86,1,86,8],[87,1,87,8]]}
["SECTION 2 - GOODS AND SERVICES PROVIDED"]
[]
["Please advise which locations you work in and the goods / services you provide, by selecting Y for Yes from the dropdown menu beside each option which applies to you.  Leave blank everything that does not apply."]
[]
[]
["LOCATION"]
["NI",null,"ROI",null,"London",null,"Rest of UK"]
[]
[]
["GOODS / SERVICES BY DEPARTMENT:"]
["BUILD",null,null,null,null,null,null,null,null,"Select Y"]
[1,"Design"]
[2,"Site Surveys / Levels / Setting Out, Asbestos Surveys / Removals & Demolition / Strip Out"]
[3,"Civils (Including Piling)"]
[4,"Concrete Works (Includig concrete floors & precast concrete)"]
[5,"Craneage, Scaffolding, Netting & Edge Protection"]
[6,"Steel - Structural and Secondary"]
[7,"Masonary Walls / Bricklaying, Wall Cladding, Insulated Panels & Louvres"]
[8,"Aluminium Systems, Curtain Walling & Doors, Windows, Steel Doors, Roller Shutters"]
[9,"Roofing, Waterproofing / Tanking & Rainwater Systems"]
[10,"Insulation, Firestopping / Spraying & Acoustic Installation"]
[11,"Floor Screeds (Including liquid, Resin, Epoxy, Specialist & Latex), Render & Plaster"]
[12,"Drylining, Plasterboard partitions and ceilings, Suspended ceilings & raised access flooring"]
[13,"Joinery, Timber Doors / Screens, Ironmongery"]
[14,"IPS / Cubicles, Tiling, White Rock & Bump Protection"]
[15,"Vinyl / Carpet floors, Decorations, Temporary Protection & Final Clean"]
[16,"Kitchens, specialist joinery, FF&E, Racking, Specialist Equipment & Fit Out"]
[17,"Airtightness (Including Testing), Signage & Manifestations"]
[18,"Paving, Tarmac & White Lining, Landscaping, Fencing and Hoarding / Temp Fencing"]
[19,"Miscellaneous M&E - including temp electrics, temp water / foul, refrigeration, Non-Dowds"]
[20,"Miscellaneous Labour & Materials (& anything else)"]
[21,"Utilities"]
[]
["ELECTRICAL",null,null,null,null,null,null,null,null,"Select Y"]
[1,"Design"]
[2,"Sub-Contract Labour"]
[3,"Fire Alam / Security"]
[4,"Data Installers"]
[5,"AV / PA / TV"]
[6,"Nurse Call"]
[7,"Lighting"]
[8,"EMG Lighting Systems"]
[9,"Lighting Controls"]
[10,"Stage Lighting"]
[11,"LV Switchgear"]
[12,"HV Switchgear"]
[13,"Generators"]
[14,"HV Cable Jointers"]
[15,"Grading Studies"]
[16,"PFC & Harmonic Filters"]
[17,"UPS / IPS"]
[18,"Lightning Protection"]
[19,"Lifts"]
[20,"Staff Paging Systems"]
[21,"Induction Loops"]
[22,"Medical Equipment"]
[23,"Car Park Systems"]
[24,"Renewables"]
[25,"Agencies"]
[]
["MECHANICAL",null,null,null,null,null,null,null,null,"Select Y"]
[1,"Design"]
[2,"Sub-Contract Labour"]
[3,"Ventilation Ductwork"]
[4,"BMS/Energy Monitoring"]
[5,"Air Conditioning"]
[6,"Insulation / Lagging"]
[7,"Water Treatment & Balancing"]
[8,"Medical Gas"]
[9,"Natural Gas"]
[10,"Underfloor Heating"]
[11,"Fire Smoke Dampers"]
[12,"Commissioning Management"]
[13,"Water Tanks"]
[14,"Renewables"]
[15,"Boilers"]
[16,"Radiators / Radiant Panels"]
[17,"Buffer Vessels"]
[18,"Chilled Beam"]
[19,"Chillers"]
[20,"Compressed Air"]
[21,"Fans & Ventilation Plant"]
[22,"Oil Install / Plant"]
[23,"Grilles & Louvres"]
[24,"Gas / Water Leak Treatment"]
[25,"Plate Heat Exchanger"]
[26,"Pneumatic Tube"]
[27,"Pumps & Press Unit"]
[28,"Sprinklers & Dry Risers"]
[29,"Steam Install / Plant"]
[30,"Agencies"]
[31,"Crane Hire / Lift & Shift"]
[32,"Smoke & Carpark Extract"]
[33,"Air Handling Units"]
[34,"Flues"]
[35,"Water Conditioners"]
[]
["OTHER - NOT INCLUDED IN ANY OF THE OPTIONS ABOVE"]

{"sheet":"Section 3","index":4,"n_rows":31,"n_cols":14,"rows_kept":31,"cut":false,"hidden":false,"merged":[[29,3,30,9],[20,3,25,9],[20,0,25,2],[2,0,5,6],[2,7,2,9],[3,7,5,9],[11,3,13,9],[14,3,19,9],[6,0,8,6],[6,7,8,9],[27,0,28,2],[26,3,28,9],[10,0,10,9],[11,0,13,2],[14,0,19,2]]}
["SECTION 3 - INSURANCES"]
[]
["Specialists, Sub-Contractors and Hire of Plant with Labour - the attached ABL GROUP 'Confirmation of Contractors Insurance' Questionnaire must be completed and stamped by your Insurance Broker and returned with this document",null,null,null,null,null,null,"Have these been returned?",null,null,null,"ABL Received and Stamped",null,"(Insert date ABL received or n/a if ABL not required)"]
[null,null,null,null,null,null,null,"Please Select"]
[]
[null,null,null,null,null,null,null,null,null,null,null,null,"Cover","Expiry Date"]
["Wholesalers, Suppliers, Consultants - forward a copy of your current Insurance Documents",null,null,null,null,null,null,"Please Select",null,null,null,"Employers"]
[null,null,null,null,null,null,null,null,null,null,null,"Public"]
[null,null,null,null,null,null,null,null,null,null,null,"Product"]
[null,null,null,null,null,null,null,null,null,null,null,"Design"]
["NOTES ON INSURANCE REQUIREMENTS - FOR GENERAL GUIDANCE ONLY",null,null,null,null,null,null,null,null,null,null,"Contract Works"]
["Employers Liability",null,null,"Should carry £10M (this is the standard limit on all policies)"]
[]
[null,null,null,null,null,null,null,null,null,null,null,"Sufficient Insurance Cover?"]
["Public Liability",null,null,"Should carry £5M, or £10m when 'Hot Works' are included.  (Hot Works are defined as use of heat or cutting/grinding equipment that create sparks or flames.  They include the use of gas and electrical powered welding, burning or cutting equipment and any use of blow lamps,blow torches, grinding equipment and vessels for heating of bitumen or bituminous compounds)."]
[null,null,null,null,null,null,null,null,null,null,null,"Approved?"]
[]
[]
[]
[]
["Products Liability",null,null,"Should carry £5M, or £10m when 'Hot Works' are included.  (Hot Works are defined as use of heat or cutting/grinding equipment that create sparks or flames.  They include the use of gas and electrical powered welding, burning or cutting equipment and any use of blow lamps,blow torches, grinding equipment and vessels for heating of bitumen or bituminous compounds)."]
[]
[]
[]
[]
[]
["Professional Indemnity",null,null,"[£2M for projects less than £1M, and £5M for projects over £1M]"]
["(when responsible for design)"]
[]
["Contract Works",null,null,"Should be for the value of your contract until your works are handed over to Dowds Group"]
["(When supplying and installing)"]

{"sheet":"Section 4","index":5,"n_rows":59,"n_cols":7,"rows_kept":59,"cut":false,"hidden":false,"merged":[[0,0,1,8],[56,0,57,1],[56,2,57,3],[56,4,57,5],[56,6,57,7],[16,1,17,3],[18,1,19,3],[20,1,21,3],[11,0,11,7],[12,0,13,7],[12,8,13,8],[15,0,15,8],[2,0,2,7],[5,2,5,8],[6,2,6,8],[7,2,7,8],[58,0,58,7],[52,0,53,1],[52,2,53,3],[52,4,53,5],[52,6,53,7],[54,0,55,1],[54,2,55,3],[54,4,55,5],[54,6,55,7],[9,0,9,7],[25,1,25,8],[22,1,22,8],[23,1,23,8],[24,1,24,8],[35,0,36,7],[35,8,36,8],[27,8,28,8],[29,8,30,8],[37,8,38,8],[31,0,32,7],[31,8,32,8],[33,0,34,7],[33,8,34,8],[42,6,43,7],[50,0,51,1],[16,0,21,0],[42,0,43,1],[44,0,45,1],[46,0,47,1],[48,0,49,1],[41,0,41,1],[29,0,30,7],[27,0,28,7],[16,4,17,8],[18,4,19,8],[20,4,21,8],[26,1,26,8],[41,2,41,3],[37,0,38,7],[41,4,41,5],[41,6,41,7],[50,6,51,7],[50,4,51,5],[50,2,51,3],[46,2,47,3],[48,2,49,3],[48,4,49,5],[48,6,49,7],[46,6,47,7],[46,4,47,5],[44,2,45,3],[44,4,45,5],[44,6,45,7],[42,2,43,3],[42,4,43,5]]}
["SECTION 4 - HEALTH & SAFETY"]
[]
["01. How many people are employed in your organisation?"]
[]
["02. Who is responsible for Health & Safety in your organisation?"]
["Name"]
["Company"]
["Qualifications"]
[]
["03. Do you have a Health & Safety Management System?                                                                       \n[If YES, advise type & provide certificates]                                                                                                     \n[If UKAS Certified, go to subsection 13]"]
[]
["04. Do you have a regularly updated Health & Safety Policy?\n[If YES, attach details / current copy]"]
["05. Do you use suitably skilled & competent Supervisors, Operatives & Subcontractors?"]
[]
[]
["06. Provide  details of Health & Safety training which you provide for the following groups:"]
[null,"* Directors"]
[]
[null,"* Managers / Supervisors"]
[]
[null,"* Operatives / Employees"]
[]
[null,"Note: As a minimum CSR, Manual Handling, Abrasive Wheels, Working @ Height and Asbestos Awareness (if working on buildings which were built pre-2000) are essential training for all subcontractor operatives working on Dowds Group sites."]
[null,"In addition…"]
[null,"·         MEWPS IPAF or CPCS – for those operating all MEWPS including PAVs   "]
[null,"·         PASMA Towers for Users – for operatives to erect, modify and inspect Mobile Scaffold Towers (some of our Clients may insist on this training for all working from mobile towers)"]
[null,"·         Formal Ladder Training (some Clients may insist on this training for all using ladders/ steps)"]
["07. Do you carry out Risk Assessments & provide Method Statements?"]
[]
["08. Will you ensure that your employees comply with site rules detailed in the SHE Safety Plan?"]
[]
["09. Do you have/ use Permits to Work?"]
[]
["10. Do you have a procedure for reporting & investigating accidents, dangerous occurrences, or occupational illnesses?"]
[]
["11. Is all electrical equipment intended to be used by you on site PAT tested?"]
[]
["12. Do you consult your employees on H&S management within the organisation and do you actively encourage their participation in H&S management?"]
[]
[]
["13. ACCIDENT REPORTING / 'HEALTH & SAFETY EXECUTIVE' NOTICES [PAST 3 YEARS]"]
["ACCIDENTS/ NOTICES",null,"(Last Year)",null,"(Last Year -1)",null,"(Last Year -2)"]
["No. of Employees (incl. Sub-Contractors)"]
[]
["No. of Fatalities"]
[]
["Reportable injuries - RIDDOR"]
[]
["No. of Dangerous Occurences - RIDDOR"]
[]
["No. of Ill Health Reports - RIDDOR"]
[]
["No. of Prosecutions"]
[]
["No. of Prohibition Notices"]
[]
["No. of Improvement Notices"]
[]
["[As applicable, provide details of events/ notices recorded above]"]

{"sheet":"Section 5","index":6,"n_rows":6,"n_cols":1,"rows_kept":6,"cut":false,"hidden":false,"merged":[[0,0,1,8],[3,8,4,8],[3,0,4,7],[2,0,2,7],[5,0,7,7],[5,8,7,8]]}
["SECTION 5 - ENVIRONMENTAL"]
[]
["01. Do you have an Environmental Management System?"]
["02. if None, are you willing to work in accordance with our Envionmental Management System?"]
[]
["03. Has there been any civil action in respect of the environment, or have you been convicted of breaking any environmental legislation in the last 5 years?                                                            \n[If YES, attach details]"]

{"sheet":"Section 6","index":7,"n_rows":14,"n_cols":1,"rows_kept":14,"cut":false,"hidden":false,"merged":[[0,0,1,8],[13,0,14,7],[15,0,18,7],[2,0,2,7],[5,0,5,7],[6,0,6,7],[7,0,12,7],[3,0,3,7],[4,0,4,7]]}
["SECTION 6 - QUALITY"]
[]
["01 Do you have a Quality Management System?                                                                     \n[If UKAS Certified, go to subsection 05]                               "]
["02. If No, are you willing to work in accordance with our Quality Management System"]
["03. Do you work to written procedures?"]
["04. Do you keep quality records / offer certificates of conformity?"]
["05. Provide details below of how you manage quality control / monitor the quality of your service/ provide quality records/ certificates of conformity."]
[]
[]
[]
[]
[]
[]
["06. Provide details below of any specialist, trade-related/ association memberships, accreditations or licences, which confirm the quality of your service, which would be of benefit to this assessment of your company"]

{"sheet":"Section 7","index":8,"n_rows":66,"n_cols":12,"rows_kept":66,"cut":false,"hidden":false,"merged":[[0,0,1,9],[65,1,65,8],[56,9,57,9],[60,1,60,8],[61,1,61,8],[62,1,62,8],[63,1,63,8],[64,1,64,8],[56,0,57,8],[59,1,59,8],[58,1,58,8],[2,0,3,9],[11,1,12,9],[13,1,15,9],[20,2,22,9],[27,1,27,9],[5,0,5,9],[6,0,8,9],[9,1,10,9],[16,1,19,9],[23,2,25,9],[45,0,46,1],[45,2,46,9],[49,2,50,9],[47,0,48,1],[49,0,50,1],[47,2,48,4],[47,5,48,5],[47,6,48,9],[28,1,29,9],[30,1,30,9],[31,1,33,9],[34,1,34,9],[42,0,44,9],[41,0,41,9],[35,1,36,9],[37,1,40,9]]}
["SECTION 7 - COMPLETION & DECLARATION"]
[]
["All Suppliers / Subcontractors working on site on behalf of / under the control of Dowds Group, must comply with Dowds Group requirements as outlined here."]
[]
[]
["Please take time to read the following applicable requirements before continuing:"]
["As a sub-contractor / supplier managed by Dowds Group, you and your team are required to comply with the requirements of our ISO9001-, ISO14001- & ISO 45001- compliant Integrated Management System. To that end, you must:"]
[]
[]
[1,"Be familiar with our Integrated Policy Statement (IF 01) (see attached) and ensure that your carry out your work with this policy in mind."]
[]
[2,"Comply with our IMS principles as detailed within our Integrated Policy Statement and ensure that all works carried out do not impinge on Dowds Group’s ability to adhere to these principles."]
[]
[3,"Understand that the work you do is important for us to meet the requirements of our IMS and most importantly our customers. If you do not conduct yourself / provide your service with this in mind, resulting in a poor service to our customer, your actions will be investigated. "]
[]
[]
[4,"Carry out your work / service in a safe and environmentally friendly way to ensure that Dowds Group minimises our impact on the environment and provides a safe environment for all those working for and on-behalf of the organisation. Deviation from these requirements will result in your actions being investigated. Examples of deviation would be;"]
[]
[]
[]
[null,"a.","Non-compliance with site waste management arrangements (Hazardous & Non-Hazardous Waste) potentially resulting in Dowds Group being reprimanded by local authority, waste management company or Environment Agency / NIEA due to a breach in legislation."]
[]
[]
[null,"b.","Not wearing appropriate PPE, misusing dangerous equipment or disregarding site safety rules / Toolbox Talks creating an unsafe environment, potentially resulting in an injury or death."]
[]
[]
[5,"Ensure that you provide the goods / services required as detailed within our Purchase Order."]
[6,"Ensure that you quality inspect your product or service prior to sending the goods / finishing the service."]
[7,"Ensure that those manufacturing the product / providing the service are competent and do so using equipment and processes that will ensure the highest level of quality. "]
[]
[8,"We in turn will make available our IMS policy as required."]
[9,"We will inspect the quality of product / quality of service of receipt of said product / service, via a thorough visual inspection or a certification of conformity where we do not have the expertise to inspect product / service quality."]
[]
[]
[10,"We will review your performance on a regular basis."]
[11,"Where your staff will be working on site, they will have the minimum Health & Safety training as detailed within IG 09 (attached)."]
[]
[12,"Signing of this document will be considered evidence that you understand requirements placed upon you, your staff and sub-contractors as detailed within our Sub-Contractor Handbook (IF 39) and will communicate any changes within subsequent versions of IF 39 that are provided to you. "]
[]
[]
[]
["DECLARATION:"]
["This declaration is to be signed by an autorised signatory to confirm that the requirements above are understood, and the answers and evidence provided by your organisation in response to all of the queries are true and accurate.  Supporting documentation to be attached"]
[]
[]
["NAME"]
[]
["POSITION",null,null,null,null,"DATE"]
[]
["SIGNATURE"]
[null,null,null,null,null,null,null,null,null,null,null,{"$f":"G48","v":"00:00:00"}]
[]
[]
[]
[]
[]
["CHECKLIST - confirm that all required supplementary information has been included with the submission of this completed form",null,null,null,null,null,null,null,null,"Y/N/NA"]
[]
[1,"Section 1 - Verification of Bank Details",null,null,null,null,null,null,null,"Please Select"]
[2,"Section 3 - ABL Group 'Confirmation of Contractors Insurance' Questionnaire, completed and stamped by Insurance Broker OR Insurance Policy Documents in place of the ABL Questionnaire if you are a Wholesaler, Supplier, or a Consultant.  ",null,null,null,null,null,null,null,"Please Select"]
[3,"Section 4 - Heath & Safety Management System Certification",null,null,null,null,null,null,null,"Please Select"]
[4,"Section 4 - Health & Safety Policy",null,null,null,null,null,null,null,"Please Select"]
[5,"Section 4 - Any enforcement orders (improvements or prohibition) served against any of your sites by the Health & Safety Executive in the past 3 years",null,null,null,null,null,null,null,"Please Select"]
[6,"Section 5 - Environmental Management System Certification",null,null,null,null,null,null,null,"Please Select"]
[7,"Section 5 - Any civil action in respect of the environment, or any conviction of breaking any environmental legislation in the last 5years",null,null,null,null,null,null,null,"Please Select"]
[8,"Section 6 - Quality Management System Certification",null,null,null,null,null,null,null,"Please Select"]

{"sheet":"Summary","index":9,"n_rows":51,"n_cols":112,"rows_kept":51,"cut":false,"hidden":false,"merged":[[45,1,45,2],[46,1,46,2],[49,1,49,2],[50,1,50,2],[15,4,16,8],[25,4,26,8],[31,1,32,2],[34,1,35,2],[36,1,37,2],[39,1,40,2],[41,1,42,2],[33,1,33,2],[38,1,38,2],[21,4,21,8],[22,4,22,8],[12,4,12,8],[13,4,13,8],[18,4,18,8],[19,4,19,8],[17,1,20,2],[14,1,15,2],[16,1,16,2],[13,1,13,2],[30,1,30,2],[33,3,34,8],[25,1,25,2],[28,1,28,2],[14,4,14,8],[21,1,21,2],[24,1,24,2],[26,1,27,2],[24,4,24,8],[27,4,27,8],[28,4,28,8],[30,4,30,8],[29,4,29,8]]}
["Account Ref","Account Name","Dept","Category","Requested By","B1","B2","B3","B4","B5","B6","B7","B8","B9","B10","B11","B12","B13","B14","B15","B16","B17","B18","B19","B20","B21","E1","E2","E3","E4","E5","E6","E7","E8","E9","E10","E11","E12","E13","E14","E15","E16","E17","E18","E19","E20","E21","E22","E23","E24","E25","M1","M2","M3","M4","M5","M6","M7","M8","M9","M10","M11","M12","M13","M14","M15","M16","M17","M18","M19","M20","M21","M22","M23","M24","M25","M26","M27","M28","M29","M30","M31","M32","M33","M34","M35","NI","ROI","London","Rest of UK","IF31 Date","Credit Score","Credit Score Date","Payment Terms","ABL completed","Employers","Expires","Public","Expires2","Products","Expires3","Contract Works","Expires4","PI","Expires5","Account Approved","Contact Name","Contact Email","Town/City","H&S","Environmental","Quality"]
[{"$f":"'Section 1'!K18","v":0},{"$f":"'Section 1'!N2","v":0},{"$f":"'Cover Sheet'!F14","v":"Please select:"},{"$f":"'Cover Sheet'!F15","v":"Please select:"},{"$f":"'Section 1'!K2","v":0},{"$f":"'Section 2'!J12","v":0},{"$f":"'Section 2'!J13","v":0},{"$f":"'Section 2'!J14","v":0},{"$f":"'Section 2'!J15","v":0},{"$f":"'Section 2'!J16","v":0},{"$f":"'Section 2'!J17","v":0},{"$f":"'Section 2'!J18","v":0},{"$f":"'Section 2'!J19","v":0},{"$f":"'Section 2'!J20","v":0},{"$f":"'Section 2'!J21","v":0},{"$f":"'Section 2'!J22","v":0},{"$f":"'Section 2'!J23","v":0},{"$f":"'Section 2'!J24","v":0},{"$f":"'Section 2'!J25","v":0},{"$f":"'Section 2'!J26","v":0},{"$f":"'Section 2'!J27","v":0},{"$f":"'Section 2'!J28","v":0},{"$f":"'Section 2'!J29","v":0},{"$f":"'Section 2'!J30","v":0},{"$f":"'Section 2'!J31","v":0},{"$f":"'Section 2'!J32","v":0},{"$f":"'Section 2'!J35","v":0},{"$f":"'Section 2'!J36","v":0},{"$f":"'Section 2'!J37","v":0},{"$f":"'Section 2'!J38","v":0},{"$f":"'Section 2'!J39","v":0},{"$f":"'Section 2'!J40","v":0},{"$f":"'Section 2'!J41","v":0},{"$f":"'Section 2'!J42","v":0},{"$f":"'Section 2'!J43","v":0},{"$f":"'Section 2'!J44","v":0},{"$f":"'Section 2'!J45","v":0},{"$f":"'Section 2'!J46","v":0},{"$f":"'Section 2'!J47","v":0},{"$f":"'Section 2'!J48","v":0},{"$f":"'Section 2'!J49","v":0},{"$f":"'Section 2'!J50","v":0},{"$f":"'Section 2'!J51","v":0},{"$f":"'Section 2'!J52","v":0},{"$f":"'Section 2'!J53","v":0},{"$f":"'Section 2'!J54","v":0},{"$f":"'Section 2'!J55","v":0},{"$f":"'Section 2'!J56","v":0},{"$f":"'Section 2'!J57","v":0},{"$f":"'Section 2'!J58","v":0},{"$f":"'Section 2'!J59","v":0},{"$f":"'Section 2'!J62","v":0},{"$f":"'Section 2'!J63","v":0},{"$f":"'Section 2'!J64","v":0},{"$f":"'Section 2'!J65","v":0},{"$f":"'Section 2'!J66","v":0},{"$f":"'Section 2'!J67","v":0},{"$f":"'Section 2'!J68","v":0},{"$f":"'Section 2'!J69","v":0},{"$f":"'Section 2'!J70","v":0},{"$f":"'Section 2'!J71","v":0},{"$f":"'Section 2'!J72","v":0},{"$f":"'Section 2'!J73","v":0},{"$f":"'Section 2'!J74","v":0},{"$f":"'Section 2'!J75","v":0},{"$f":"'Section 2'!J76","v":0},{"$f":"'Section 2'!J77","v":0},{"$f":"'Section 2'!J78","v":0},{"$f":"'Section 2'!J79","v":0},{"$f":"'Section 2'!J80","v":0},{"$f":"'Section 2'!J81","v":0},{"$f":"'Section 2'!J82","v":0},{"$f":"'Section 2'!J83","v":0},{"$f":"'Section 2'!J84","v":0},{"$f":"'Section 2'!J85","v":0},{"$f":"'Section 2'!J86","v":0},{"$f":"'Section 2'!J87","v":0},{"$f":"'Section 2'!J88","v":0},{"$f":"'Section 2'!J89","v":0},{"$f":"'Section 2'!J90","v":0},{"$f":"'Section 2'!J91","v":0},{"$f":"'Section 2'!J92","v":0},{"$f":"'Section 2'!J93","v":0},{"$f":"'Section 2'!J94","v":0},{"$f":"'Section 2'!J95","v":0},{"$f":"'Section 2'!J96","v":0},{"$f":"'Section 2'!B7","v":0},{"$f":"'Section 2'!D7","v":0},{"$f":"'Section 2'!F7","v":0},{"$f":"'Section 2'!H7","v":0},{"$f":"'Section 7'!L51","v":"00:00:00"},{"$f":"'Section 1'!K3","v":0},{"$f":"'Section 1'!K4","v":"00:00:00"},{"$f":"'Section 1'!K15","v":0},{"$f":"CM2","v":"00:00:00"},{"$f":"'Section 3'!M7","v":0},{"$f":"'Section 3'!N7","v":"00:00:00"},{"$f":"'Section 3'!M8","v":0},{"$f":"'Section 3'!N8","v":"00:00:00"},null,null,{"$f":"'Section 3'!M11","v":0},{"$f":"'Section 3'!N11","v":"00:00:00"},{"$f":"'Section 3'!M10","v":0},{"$f":"'Section 3'!N10","v":"00:00:00"},{"$f":"'Section 1'!K17","v":0},{"$f":"'Section 1'!N3","v":0},{"$f":"'Section 1'!N4","v":0},{"$f":"'Section 1'!K19","v":0},{"$f":"B5","v":""},{"$f":"B6","v":0},{"$f":"Summary!B7","v":0}]
[]
["Section ","Score","Approval"]
["Section 4 - Health and Safety",{"$f":"IFERROR(Logic!U6,\"\")","v":""},{"$f":"IF(AND(B5>=2,B5<=4),\"Pending\",IF(B5>=4,\"Approved\",IF(B5<2,\"Not Approved\")))","v":"Approved"}]
["Section 5 - Environmental",{"$f":"Logic!U14","v":0},{"$f":"IF(AND(B6>=2,B6<=4),\"Pending\",IF(B6>=4,\"Approved\",IF(B6<2,\"Not Approved\")))","v":"Not Approved"}]
["Section 6 - Quality",{"$f":"Logic!U22","v":0},"Not Approved"]
[]
[]
[]
[]
["SAGE",null,null,"CONSTRUCT"]
["GENERAL",null,null,"CIS",{"$f":"'Section 1'!K8","v":0}]
["Account Reference",{"$f":"'Section 1'!K18","v":0},null,"CIS Type",{"$f":"'Section 1'!K9","v":0}]
["Account Name",{"$f":"'Section 1'!N2","v":0},null,"Business",{"$f":"'Section 1'!K10","v":0}]
[null,null,null,"LegalName",{"$f":"'Section 1'!N2","v":0}]
["Currency",{"$f":"'Section 1'!K20","v":0}]
["Address",{"$f":"'Section 1'!N5","v":0},null,"Sole Trader:"]
[null,null,null,"NI No",{"$f":"'Section 1'!N18","v":0}]
[null,null,null,"UTR",{"$f":"'Section 1'!N19","v":0}]
[null,null,null,"Company"]
["Telephone",{"$f":"'Section 1'!N6","v":0},null,"UTR",{"$f":"'Section 1'!N20","v":0}]
[null,null,null,"Company Reg",{"$f":"'Section 1'!N25","v":0}]
["BANK",null,null,"Partnership"]
["Account Number",{"$f":"'Section 1'!N7","v":0},null,"UTR",{"$f":"'Section 1'!N22","v":0}]
["Sort Code",{"$f":"'Section 1'!N8","v":0},null,"Partners Name",{"$f":"'Section 1'!N24","v":0}]
["Account Name",{"$f":"'Section 1'!N2","v":0}]
[null,null,null,"Partners UTR",{"$f":"'Section 1'!N22","v":0}]
["IBAN",{"$f":"'Section 1'!N9","v":0},null,"Partners NI No",{"$f":"'Section 1'!N23","v":0}]
[null,null,null,"Verified Date",{"$f":"'Section 1'!K13","v":"00:00:00"}]
["CONTACT",null,null,"Verification No",{"$f":"'Section 1'!K12","v":0}]
["Sales",{"$f":"'Section 1'!N10","v":0}]
[null,null,null,"INSURANCES"]
["Telephone",{"$f":"'Section 1'!N11","v":0},null,"Take info from ABL and / or Insurance Documents"]
["Email",{"$f":"'Section 1'!N12","v":0}]
[]
["Accounts",{"$f":"'Section 1'!N13","v":0}]
[]
["Telephone",{"$f":"'Section 1'!N14","v":0}]
["Email",{"$f":"'Section 1'!N15","v":0}]
[]
["Remittance Email",{"$f":"'Section 1'!N16","v":0}]
[]
["TRADING"]
["Default VAT",{"$f":"'Section 1'!K21","v":0}]
["VAT Number",{"$f":"'Section 1'!N17","v":0}]
["Nominal Code",{"$f":"'Section 1'!K22","v":0}]
[]
["Payment"]
["Terms",{"$f":"'Section 1'!K15","v":0}]
["Group",{"$f":"'Section 1'!K23","v":0}]

{"sheet":"Data Validation","index":10,"n_rows":13,"n_cols":8,"rows_kept":13,"cut":false,"hidden":true,"merged":[]}
["Y","Please select:","Please select:","DG Payment Calendar",null,"£ Stg",null,"00 DD"]
["Yes","Build","Wholesaler","30 days EOM",null,"€ Euro",null,"01 One Off"]
["No","Electrical","Supplier","45 days EOM",null,null,null,"02 Supply Only"]
[null,"Mechanical","Supplier 2","60 days EOM",null,"G Gross",null,"03 Settlement Supply"]
[null,"Consultant","Labour Only Sub Contractor","Other",null,"N Net Standard Rate",null,"04 Subcontractor"]
["Please Select","Hire of Plant and Machinery","Supply & Fix Subcontractor",null,null,"X Net Higher Rate",null,"05 Hire"]
["Agreed",null,"Specialist",null,null,null,null,"06 Euro Supply"]
["Not Agreed",null,"Consultant / Designer",null,null,"Sole Trader",null,"07 Euro Subcontractor"]
[null,null,"HIRE of Plant and Machinery",null,null,"Partnership"]
["Please Select",null,"Please Select",null,"Yes","Company",null,"Build"]
["Yes",null,"Yes",null,"No ","Trust",null,"Mechanical"]
["No",null,"N/A",null,"Approved",null,null,"Electrical"]
["N/A",null,null,null,"Not Approved",null,null,"ISD"]

{"sheet":"Logic","index":11,"n_rows":22,"n_cols":21,"rows_kept":22,"cut":false,"hidden":true,"merged":[[21,19,27,19],[13,19,19,19],[21,0,27,0],[21,1,27,1],[21,2,27,2],[21,3,27,3],[21,4,27,4],[21,5,27,5],[21,6,27,6],[21,7,27,7],[21,8,27,8],[21,9,27,9],[21,10,27,10],[21,11,27,11],[21,12,27,12],[21,13,27,13],[21,14,27,14],[13,10,19,10],[13,11,19,11],[13,12,19,12],[13,13,19,13],[13,14,19,14],[13,5,19,5],[13,6,19,6],[13,7,19,7],[13,8,19,8],[13,9,19,9],[13,0,19,0],[13,1,19,1],[13,2,19,2],[13,3,19,3],[13,4,19,4],[5,1,11,1],[5,11,11,11],[5,12,11,12],[5,13,11,13],[5,14,11,14],[5,20,11,20],[13,20,19,20],[21,20,27,20],[4,19,4,20],[5,0,11,0],[5,19,11,19],[5,2,11,2],[5,3,11,3],[5,4,11,4],[5,5,11,5],[5,6,11,6],[5,7,11,7],[5,8,11,8],[5,9,11,9],[5,10,11,10],[4,16,4,18]]}
[null,null,null,null,null,null,null,null,null,null,null,null,null,"Industry AIR",2.5]
[null,null,null,null,null,null,null,null,null,null,null,null,null,"HT",{"$f":"SUM(O1*0.8)","v":2}]
[null,null,null,null,null,null,null,null,null,null,null,null,null,"LT",{"$f":"SUM(O1*0.4)","v":1}]
[]
[null,null,"Q1","Q2","Q3","Q4","Q5","Q6","Q7","Q8","Q9","Q10","Q11","Q12","Q13",null,"Q14",null,null,"Score"]
["Section 3","Health and Safety ",{"$f":"'Section 4'!I3","v":0},null,{"$f":"IF('Section 4'!I10=\"UKAS Certified\",20,IF('Section 4'!I10=\"Non-UKAS Certified\",10,IF('Section 4'!I10=\"Uncertified\",3,IF('Section 4'!I10=\"N/A\",10,IF('Section 4'!I10=\"None\",0)))))","v":false},{"$f":"IF('Section 4'!I12=\"Yes\",5,IF('Section 4'!I12=\"No\",0,IF('Section 4'!I12=\"N/A\",5)))","v":false},{"$f":"IF('Section 4'!I13=\"Yes\",5,IF('Section 4'!I13=\"No\",0,IF('Section 4'!I13=\"N/A\",5)))","v":false},null,{"$f":"IF('Section 4'!I28=\"Yes\",5,IF('Section 4'!I28=\"No\",0,IF('Section 4'!I28=\"N/A\",5)))","v":false},null,null,null,null,null,null,"No. of Employees",{"$f":"'Section 4'!C43","v":0},{"$f":"'Section 4'!E43","v":0},{"$f":"'Section 4'!G43","v":0},{"$f":"SUM(E6+F6+G6+I6+Q10+R10+S10)-(Q11*25)-(R11*25)-(S11*25)+Q12+R12+S12","v":{"$error":"#DIV/0!"}},{"$f":"T6/11","v":{"$error":"#DIV/0!"}}]
[null,null,null,null,null,null,null,null,null,null,null,null,null,null,null,null,{"$f":"SUM(Q8*100000)","v":0},{"$f":"SUM(R8*100000)","v":0},{"$f":"SUM(S8*100000)","v":0}]
[null,null,null,null,null,null,null,null,null,null,null,null,null,null,null,"No. of Reportable Inc",{"$f":"SUM('Section 4'!C47:D52)","v":0},{"$f":"SUM('Section 4'!E47:F52)","v":0},{"$f":"SUM('Section 4'!G47:H52)","v":0}]
[]
[null,null,null,null,null,null,null,null,null,null,null,null,null,null,null,null,{"$f":"SUM(Q7/Q6)/1000","v":{"$error":"#DIV/0!"}},{"$f":"SUM(R7/R6)/1000","v":{"$error":"#DIV/0!"}},{"$error":"#DIV/0!"}]
[null,null,null,null,null,null,null,null,null,null,null,null,null,null,null,null,{"$f":"'Section 4'!C45","v":0},{"$f":"'Section 4'!E45","v":0},{"$f":"'Section 4'!G45","v":0}]
[null,null,null,null,null,null,null,null,null,null,null,null,null,null,null,null,{"$f":"IF(AND(Q10>=O3,Q10<=O2),\"5\",IF(Q10<=O3,\"10\",IF(Q10>O1,\"0\",IF(AND(Q10>O2,Q10<=O1),\"3\"))))","v":{"$error":"#DIV/0!"}},{"$f":"IF(AND(R10>=O3,R10<=O2),\"5\",IF(R10<=O3,\"10\",IF(R10>O1,\"0\",IF(AND(R10>O2,R10<=O1),\"3\"))))","v":{"$error":"#DIV/0!"}},{"$f":"IF(AND(S10>=O3,S10<=O2),\"5\",IF(S10<=O3,\"10\",IF(S10>O1,\"0\",IF(AND(S10>O2,S10<=O1),\"3\"))))","v":{"$error":"#DIV/0!"}}]
[]
["Section 4","Environmental",{"$f":"IF('Section 5'!I3=\"UKAS Certified\",50,IF('Section 5'!I3=\"Non-UKAS Certified\",30,IF('Section 5'!I3=\"Uncertified\",10,IF('Section 5'!I3=\"N/A\",50,IF('Section 5'!I3=\"None\",0)))))","v":false},null,{"$f":"IF('Section 5'!I6=\"Yes\",-50,IF('Section 5'!I6=\"No\",0,IF('Section 5'!I6=\"N/A\",0)))","v":false},null,null,null,null,null,null,null,null,null,null,null,null,null,null,{"$f":"SUM(C14+E14)","v":0},{"$f":"T14/2","v":0}]
[]
[]
[]
[]
[]
[]
[]
["Section 5","Quality",{"$f":"IF('Section 6'!I3=\"UKAS Certified\",50,IF('Section 6'!I3=\"Non-UKAS Certified\",30,IF('Section 6'!I3=\"Uncertified\",10,IF('Section 6'!I3=\"N/A\",50,IF('Section 6'!I3=\"None\",0)))))","v":false},null,null,null,null,null,null,null,null,null,null,null,null,null,null,null,null,{"$f":"SUM(C22)","v":0},{"$f":"T22/2","v":0}]

{"sheet":"References","index":12,"n_rows":15,"n_cols":5,"rows_kept":15,"cut":false,"hidden":true,"merged":[]}
["None",null,"Yes",null,"Build Labour Only SubContractor"]
["Uncertified",null,"No",null,"Build Specialist/ Sub-Contractor"]
["Non-UKAS Certified",null,"N/A",null,"Build Supplier"]
["UKAS Certified",null,null,null,"Build Wholesale"]
[null,null,null,null,"Consultant"]
[null,null,null,null,"Electrical Labour Only SubContractor"]
[null,null,null,null,"Electrical Specialist / Sub-Contractor"]
[null,null,null,null,"Electrical Supplier"]
[null,null,null,null,"Electrical Wholesale"]
[null,null,null,null,"Hire"]
[null,null,null,null,"Mechanical Labour Only SubContractor"]
[null,null,null,null,"Mechanical Specialist / Sub-Contractor"]
[null,null,null,null,"Mechanical Supplier"]
[null,null,null,null,"Mechanical Wholesale"]
[null,null,null,null,"OTHER"]